[Event "NOR-ch Women 2020"]
[Site "Bergen"]
[Date "2020.03.01"]
[Round "4.3"]
[White "Kvendseth, Thyra"]
[Black "Greibrokk, Ingrid"]
[Result "1-0"]
[ECO "A24"]
[WhiteElo "1889"]
[BlackElo "1862"]
[Annotator "NA"]
[PlyCount "135"]
[EventDate "2020.02.28"]
[EventType "swiss"]
[EventCountry "NOR"]
[SourceTitle "playchess.com"]
[Source "ChessBase"]
[SourceQuality "1"]
[TimeControl "5400+30"]

{[%evp 13,101,6,17,13,56,16,15,0,-22,-55,-53,-51,-49,-75,-68,-62,-60,-85,-47,-88,-82,-86,-78,-99,-112,-100,-106,-72,-66,-125,-25,-60,-71,-51,32767,32767,32767,-55,32767,32767,32767,32767,32767,-121,-115,32767,-106,-104,0,0,0,-24,0,0,178,45,161,160,142,10,2,0,218,0,393,487,549,815,32767,32767,32767,32767,32767,32767,32767,0,32767,32767,32767,0,0,32767,32767,32767,32767,32767,32767,32767,32767,595]} 1. c4 {[%emt 0:00:00]} e5 {[%emt 0:00:00]} 2. Nc3 {[%emt 0:00:00]} Nf6 {[%emt 0:00:40]} 3. g3 {[%emt 0:00:00]} g6 {[%emt 0:00:49]} 4. Bg2 {[%emt 0:00:00]} Bg7 {[%emt 0:00:02]} 5. d3 {[%emt 0:00:25]} O-O {[%emt 0:00:06]} 6. Nf3 {[%emt 0:00:08]} Re8 {[%emt 0:00:28] 6...Nc6 gains popularity.} 7. O-O {[%emt 0:06:06]} c6 {[%emt 0:01:08] A24: English Opening vs King's Indian: Lines without ...Nc6.} 8. e4 {[%emt 0:02:03]} d5 {[%emt 0:01:37]} 9. cxd5 {[%emt 0:03:23]} cxd5 {[%emt 0:00:05] [#]} 10. Qb3 $146 {[%emt 0:00:09]} ({Predecessor:} 10. Bg5 d4 11. Nd5 Be6 12. Nd2 Nbd7 13. Rc1 Bxd5 14. exd5 h6 15. Bxf6 Nxf6 16. Qb3 {1-0 (23) Boger,R-Nilsen,K Randaberg 1991}) 10... d4 {[%emt 0:03:43]} 11. Ne2 {[%emt 0:00:45]} Qe7 {[%emt 0:00:31]} 12. Bd2 {[%emt 0:02:29]} Nc6 {[%emt 0:00:43]} 13. Nh4 {[%emt 0:03:50]} Be6 {[%emt 0:01:33]} 14. Qd1 {[%emt 0:00:41]} Nd7 {[%emt 0:03:29]} 15. f4 {[%emt 0:04:33]} f6 {[%emt 0:03:19]} 16. f5 {[%emt 0:02:11]} Bf7 {[%emt 0:00:06]} 17. fxg6 {[%emt 0:02:04]} hxg6 {[%emt 0:00:05]} 18. Kh1 {[%emt 0:02:15]} Nc5 {[%emt 0:00:57]} 19. Rf3 {[%emt 0:02:21]} Ne6 {[%emt 0:01:20]} 20. Ng1 {[%emt 0:02:02]} Rac8 {[%emt 0:01:13]} 21. Nh3 {[%emt 0:02:12]} Rc7 {[%emt 0:01:03]} (21... Nb4 $17 22. Qa4 Nc2) 22. Qe2 {[%emt 0:05:23]} Rec8 {[%emt 0:01:03]} 23. Rff1 {[%emt 0:01:14]} Nb4 {[%emt 0:03:21]} 24. a3 {[%emt 0:01:46]} Nc2 {[%emt 0:01:32]} 25. Rac1 {[%emt 0:00:39]} b5 {[%emt 0:00:16]} 26. Nf2 {[%emt 0:07:28]} b4 {[%emt 0:00:50]} 27. axb4 {[%emt 0:00:10]} Nxb4 {[%emt 0:00:09]} 28. Bxb4 {[%emt 0:00:28]} (28. Rxc7 $15 Rxc7 29. Bh3) 28... Qxb4 {[%emt 0:00:09]} 29. Rxc7 {[%emt 0:00:24]} Rxc7 {[%emt 0:00:45]} 30. Ng4 {[%emt 0:00:26]} Rb7 {[%emt 0:05:02]} ({Better is} 30... Rc6 $17 31. Qf3 (31. Nxf6+ $2 Bxf6 32. Rxf6 Nf4 $17 {[%mdl 64] Discovered Attack}) 31... Ng5) 31. Nxf6+ {[%emt 0:07:38]} Bxf6 {[%emt 0:00:07]} 32. Rxf6 {[%emt 0:00:04]} Qxb2 {[%emt 0:00:08]} 33. Qg4 $1 {[%emt 0:01:03]} Kg7 $2 {[%emt 0:02:00] [#]} (33... Qc1+ $11 {and Black has nothing to worry.} 34. Rf1 Qg5) 34. Rf1 {[%emt 0:01:16]} (34. Nf5+ $1 $18 Kf8 35. Nh4) 34... Qd2 {[%emt 0:07:38]} (34... Qa2 $1 $14) 35. Nf5+ {[%emt 0:04:37]} Kg8 {[%emt 0:02:12] [#]} 36. Nd6 {[%emt 0:09:53]} ({White should play} 36. h4 $1 $16 Rb6 37. Ne7+ {[%mdl 64] Double Attack} Kg7 38. Nd5 (38. Qf3 Nd8 $16)) 36... Rb2 {[%emt 0:02:14]} 37. Rg1 {[%emt 0:00:51]} a5 $2 {[%emt 0:05:03]} (37... Qg5 $11 38. Qh3 Qh5) 38. Qf3 $2 {[%emt 0:04:20]} (38. Nc4 $18 Qe2 39. Qh4 (39. Nxe5 Qxg4 40. Nxg4 a4 $17)) 38... Ng5 $2 {[%emt 0:01:36]} (38... Qf2 $11 {and Black stays safe.}) 39. Qf6 {[%emt 0:00:40]} a4 {[%emt 0:03:19]} 40. h4 {[%emt 0:01:48]} a3 {[%emt 0:11:10]} 41. hxg5 {[%emt 0:00:58]} Qf2 {[%emt 0:02:20]} 42. Qxf2 {[%emt 0:03:31]} Rxf2 {[%emt 0:00:02]} 43. Nxf7 {[%emt 0:00:08]} Kxf7 {[%emt 0:00:09]} 44. Rb1 {[%emt 0:01:29]} Rb2 {[%emt 0:00:16]} 45. Ra1 {[%emt 0:01:16]} a2 {[%emt 0:00:05]} 46. Kh2 $1 {[%emt 0:00:05]} Ke7 $11 {[%emt 0:00:07]} (46... Ke6 $5) 47. Kh3 {[%emt 0:00:16]} Kd6 {[%emt 0:01:19]} 48. Bf3 {[%emt 0:00:47]} Kc5 {[%emt 0:01:15]} 49. Bg4 {[%emt 0:00:14]} Kb4 {[%emt 0:02:40]} 50. Be6 {[%emt 0:00:35]} Ka3 {[%emt 0:00:11]} 51. Bf7 {[%emt 0:01:27]} Rf2 {[%emt 0:02:55]} 52. Be6 {[%emt 0:01:16]} Rb2 {[%emt 0:01:44]} 53. Kg4 {[%emt 0:01:59]} Rf2 {[%emt 0:00:16]} 54. Bc4 {[%emt 0:00:11]} Rb2 {[%emt 0:00:38]} 55. Bf7 {[%emt 0:04:20]} Rf2 {[%emt 0:00:10]} 56. Bxg6 {[%emt 0:01:42]} Rf8 {[%emt 0:00:20]} 57. Bf5 {[%emt 0:00:54]} Kb2 {[%emt 0:00:08]} 58. Rxa2+ {[%emt 0:00:35]} Kxa2 {[%emt 0:00:06]} 59. Be6+ {[%emt 0:00:22]} Kb2 {[%emt 0:00:06]} 60. g6 {[%emt 0:00:32]} Kc3 {[%emt 0:01:16]} 61. g7 {[%emt 0:00:12]} Re8 {[%emt 0:00:25]} 62. g8=Q {[%emt 0:00:50]} Rxg8+ {[%emt 0:00:04]} 63. Bxg8 {[%emt 0:00:05]} Kxd3 {[%emt 0:00:04]} 64. Kf3 {[%emt 0:00:05]} Kc2 {[%emt 0:00:12]} 65. Bc4 {[%emt 0:00:06]} Kc3 {[%emt 0:01:04]} 66. Ba6 {[%emt 0:00:11]} d3 {[%emt 0:00:48]} 67. Bxd3 {[%emt 0:00:11]} Kxd3 {[%emt 0:00:04]} 68. g4 {[%emt 0:00:05] Kxe4+ Kxe4} 1-0

[Event "NOR-ch Women 2020"]
[Site "Bergen"]
[Date "2020.03.01"]
[Round "4.4"]
[White "Hansen, Erle Andrea Marki"]
[Black "Skaslien, Ingrid"]
[Result "0-1"]
[ECO "C41"]
[WhiteElo "1860"]
[BlackElo "1847"]
[Annotator "NA"]
[PlyCount "96"]
[EventDate "2020.02.28"]
[EventType "swiss"]
[EventCountry "NOR"]
[SourceTitle "playchess.com"]
[Source "ChessBase"]
[SourceQuality "1"]
[TimeControl "5400+30"]

1. e4 {[%emt 0:01:04]} d6 {[%emt 0:00:11]} 2. d4 {[%emt 0:00:20]} Nf6 {[%emt 0:00:09]} 3. Nc3 {[%emt 0:00:04]} Nbd7 {[%emt 0:00:13]} 4. Bc4 {[%emt 0:02:18]} e5 {[%emt 0:00:25]} 5. Nf3 {[%emt 0:04:34]} Be7 {[%emt 0:01:01]} 6. h3 {[%emt 0:01:36]} c6 {[%emt 0:00:55] was the old line (6...0-0).} 7. Be3 {[%emt 0:03:30] C41: Philidor Defence.} b5 {[%emt 0:04:24]} 8. Bd3 {[%emt 0:05:38]} a6 {[%emt 0:01:18] [#]} 9. Ne2 $146 {[%emt 0:03:17]} ({Predecessor:} 9. O-O Qc7 10. Ne2 c5 11. dxe5 dxe5 12. c3 h6 13. Ng3 Nf8 14. a4 Rb8 15. Qe2 {½-½ (49) Prado,A (1831)-Alarcon,P (1906) Tromsoe 2014}) 9... Qc7 {[%emt 0:03:43]} 10. c3 {[%emt 0:04:06]} c5 {[%emt 0:14:22]} 11. d5 {[%emt 0:02:11]} c4 {[%emt 0:01:33]} 12. Bc2 {[%emt 0:00:58]} Nc5 {[%emt 0:00:55]} 13. Ng3 {[%emt 0:00:38]} O-O {[%emt 0:02:18]} 14. b4 {[%emt 0:07:52]} cxb3 {[%emt 0:07:15]} 15. axb3 {[%emt 0:00:12]} Bd7 {[%emt 0:00:17]} 16. O-O {[%emt 0:10:06]} Rfc8 {[%emt 0:04:15]} 17. Nd2 {[%emt 0:10:28]} a5 {[%emt 0:04:43]} 18. c4 {[%emt 0:06:48]} Na6 {[%emt 0:08:33]} 19. Bd3 $11 {[%emt 0:00:56]} b4 {[%emt 0:05:23]} 20. f4 {[%emt 0:02:20]} Nc5 {[%emt 0:00:50]} 21. Bc2 {[%emt 0:00:23]} exf4 {[%emt 0:06:56]} 22. Bxf4 {[%emt 0:05:03]} Ne8 {[%emt 0:02:43]} 23. Nf5 {[%emt 0:03:59]} Bxf5 {[%emt 0:02:12]} 24. exf5 {[%emt 0:00:09]} Bf6 {[%emt 0:01:14]} 25. Ra2 {[%emt 0:00:59]} Be5 {[%emt 0:00:43]} 26. Be3 {[%emt 0:02:07]} Nf6 {[%emt 0:01:13]} 27. g4 {[%emt 0:02:43]} g6 {[%emt 0:05:29]} 28. Qb1 {[%emt 0:05:35]} Re8 {[%emt 0:02:11]} 29. g5 {[%emt 0:03:50]} Nh5 {[%emt 0:00:58]} 30. Nf3 {[%emt 0:00:52]} Bg3 {[%emt 0:03:00]} 31. Bd4 {[%emt 0:01:54]} Nf4 {[%emt 0:01:17]} 32. fxg6 {[%emt 0:01:15]} hxg6 {[%emt 0:01:45]} 33. Bd1 {[%emt 0:02:46]} Ne4 {[%emt 0:01:38]} 34. Nh2 {[%emt 0:01:06]} Nxh3+ {[%emt 0:00:58]} 35. Kg2 {[%emt 0:00:10]} Nhxg5 {[%emt 0:01:42]} 36. Ng4 {[%emt 0:00:22]} Be5 {[%emt 0:00:27]} 37. Nh6+ {[%emt 0:02:54]} Kg7 {[%emt 0:00:41]} 38. Be3 {[%emt 0:00:39]} f5 {[%emt 0:00:46]} 39. Nxf5+ {[%emt 0:00:26]} gxf5 {[%emt 0:00:14]} 40. Rxf5 {[%emt 0:00:17]} Bf6 {[%emt 0:01:10]} 41. Qc1 {[%emt 0:01:11]} Kg6 {[%emt 0:02:30]} 42. Bg4 {[%emt 0:00:38]} Qe7 {[%emt 0:00:52]} 43. Kg1 {[%emt 0:01:38]} Rh8 {[%emt 0:00:22]} 44. Rg2 {[%emt 0:00:37]} Rag8 {[%emt 0:04:47]} 45. Qf1 {[%emt 0:00:37]} Kf7 {[%emt 0:02:10]} 46. Bd4 {[%emt 0:00:49]} Rh6 {[%emt 0:00:56]} 47. Rxg5 {[%emt 0:00:55]} Nxg5 {[%emt 0:00:31]} 48. Qf5 {[%emt 0:00:31]} Qe1+ {[%emt 0:00:14]} 0-1

[Event "NOR-ch Women 2020"]
[Site "Bergen"]
[Date "2020.03.01"]
[Round "4.6"]
[White "Nordquelle, Amelia"]
[Black "Eiding, Amanda Mai Irgens"]
[Result "1-0"]
[ECO "E14"]
[WhiteElo "1768"]
[BlackElo "1605"]
[Annotator "NA RC"]
[PlyCount "55"]
[EventDate "2020.02.28"]
[EventType "swiss"]
[EventCountry "NOR"]
[SourceTitle "playchess.com"]
[Source "ChessBase"]
[SourceQuality "1"]
[TimeControl "5400+30"]

1. d4 {[%emt 0:00:00]} d5 {[%emt 0:00:00]} 2. c4 {[%emt 0:00:43]} c6 {[%emt 0:00:06]} 3. Nf3 {[%emt 0:00:10]} Nf6 {[%emt 0:00:09]} 4. Nc3 {[%emt 0:00:08]} e6 {[%emt 0:00:07]} 5. e3 {[%emt 0:00:23]} Nbd7 {[%emt 0:00:08]} 6. Qc2 {[%emt 0:00:38]} Be7 {[%emt 0:00:26]} 7. b3 {[%emt 0:00:25]} O-O {[%emt 0:00:13]} 8. Be2 {[%emt 0:01:37]} b6 {[%emt 0:00:47]} 9. O-O {[%emt 0:03:22]} Bb7 {[%emt 0:00:10]} 10. Bb2 {[%emt 0:01:34]} c5 {[%emt 0:03:48]} 11. cxd5 {[%emt 0:02:40]} Nxd5 {[%emt 0:00:34]} 12. Nxd5 {[%emt 0:03:52]} Bxd5 {[%emt 0:00:12]} 13. Bd3 {[%emt 0:10:25]} h6 {[%emt 0:01:03]} 14. e4 {[%emt 0:02:44]} Bb7 {[%emt 0:01:13]} 15. Rad1 {[%emt 0:02:15]} cxd4 {[%emt 0:04:18]} 16. Bb5 {[%emt 0:05:12]} Rc8 {[%emt 0:05:46]} 17. Qb1 {[%emt 0:01:42]} Nc5 {[%emt 0:05:46]} 18. Bxd4 {[%emt 0:08:08]} Qc7 {[%emt 0:05:23]} 19. Be5 {[%emt 0:10:54]} Bxe4 {[%emt 0:00:27]} 20. Qb2 {[%emt 0:00:23]} Qb7 {[%emt 0:01:34]} 21. Bxg7 {[%emt 0:01:27]} Na6 {[%emt 0:05:12]} 22. Rd7 {[%emt 0:04:06]} Rc7 {[%emt 0:00:55]} 23. Bxa6 {[%emt 0:00:24]} Qxa6 {[%emt 0:00:16]} 24. Rxc7 {[%emt 0:00:08]} Re8 {[%emt 0:00:05]} 25. Bxh6 {[%emt 0:01:53]} f6 {[%emt 0:00:10]} 26. Rxe7 {[%emt 0:01:00]} Rxe7 {[%emt 0:00:12]} 27. Qxf6 {[%emt 0:00:16]} Qb7 {[%emt 0:01:16]} 28. Ng5 {[%emt 0:02:28]} 1-0

[Event "NOR-ch Women 2020"]
[Site "Bergen"]
[Date "2020.03.01"]
[Round "5.3"]
[White "Machlik, Monika"]
[Black "Skaslien, Ingrid"]
[Result "1-0"]
[ECO "D36"]
[WhiteElo "2106"]
[BlackElo "1847"]
[Annotator "ChessBase"]
[PlyCount "59"]
[EventDate "2020.02.28"]
[EventType "swiss"]
[EventCountry "NOR"]
[SourceTitle "playchess.com"]
[Source "ChessBase"]
[SourceQuality "1"]
[TimeControl "5400+30"]

1. d4 {[%emt 0:00:00]} Nf6 {[%emt 0:00:00]} 2. c4 {[%emt 0:00:00]} e6 {[%emt 0:00:18]} 3. Nc3 {[%emt 0:04:22]} d5 {[%emt 0:01:39]} 4. cxd5 {[%emt 0:00:07]} exd5 {[%emt 0:00:07]} 5. Bg5 {[%emt 0:00:05]} Be7 {[%emt 0:00:34]} 6. e3 {[%emt 0:00:08]} O-O {[%emt 0:00:28]} 7. Bd3 {[%emt 0:00:49]} c6 {[%emt 0:01:36]} 8. Qc2 {[%emt 0:00:18]} Nbd7 {[%emt 0:01:02]} 9. Nf3 {[%emt 0:00:38]} Re8 {[%emt 0:01:25]} 10. O-O {[%emt 0:00:08]} h6 {[%emt 0:00:44]} 11. Bf4 {[%emt 0:00:24]} Nh5 {[%emt 0:05:20]} 12. Nxd5 {[%emt 0:05:37]} Nxf4 {[%emt 0:02:19]} 13. Nxf4 {[%emt 0:00:17]} Bd6 {[%emt 0:04:51]} 14. Ne2 {[%emt 0:03:07]} Nb6 {[%emt 0:02:52]} 15. Bh7+ {[%emt 0:07:27]} Kh8 {[%emt 0:03:49]} 16. Bf5 {[%emt 0:00:12]} Qf6 {[%emt 0:09:36]} 17. Bxc8 {[%emt 0:00:06]} Raxc8 {[%emt 0:00:07]} 18. Nc3 {[%emt 0:00:32]} Qe6 {[%emt 0:02:33]} 19. e4 {[%emt 0:03:49]} Bb4 {[%emt 0:06:53]} 20. Rfe1 {[%emt 0:02:56]} Qc4 {[%emt 0:03:27]} 21. Rad1 {[%emt 0:08:37]} Bxc3 {[%emt 0:01:39]} 22. Qxc3 {[%emt 0:02:12]} Qb5 {[%emt 0:01:58]} 23. Ne5 {[%emt 0:02:42]} Kg8 {[%emt 0:01:09]} 24. b3 {[%emt 0:02:32]} Rcd8 {[%emt 0:03:12]} 25. f4 {[%emt 0:08:26]} Re7 {[%emt 0:02:53]} 26. a4 {[%emt 0:05:26]} Qa6 {[%emt 0:02:02]} 27. f5 {[%emt 0:03:22]} Rde8 {[%emt 0:01:49]} 28. f6 {[%emt 0:02:26]} gxf6 {[%emt 0:01:52]} 29. Ng4 {[%emt 0:00:58]} Nd7 {[%emt 0:01:20]} 30. Nxh6+ {[%emt 0:02:12]} 1-0

[Event "NOR-ch Women 2020"]
[Site "Bergen"]
[Date "2020.03.01"]
[Round "5.4"]
[White "Kyrkjebo, Marte B."]
[Black "Nordquelle, Amelia"]
[Result "1/2-1/2"]
[ECO "B52"]
[WhiteElo "1887"]
[BlackElo "1768"]
[Annotator "NA"]
[PlyCount "86"]
[EventDate "2020.02.28"]
[EventType "swiss"]
[EventCountry "NOR"]
[SourceTitle "playchess.com"]
[Source "ChessBase"]
[SourceQuality "1"]
[TimeControl "5400+30"]

1. e4 {[%emt 0:00:00]} c5 {[%emt 0:02:08]} 2. Nf3 {[%emt 0:00:08]} d6 {[%emt 0:00:19]} 3. Bb5+ {[%emt 0:00:09]} Bd7 {[%emt 0:00:16]} 4. Bxd7+ {[%emt 0:00:09]} Qxd7 {[%emt 0:00:08]} 5. c4 {[%emt 0:00:19]} Nc6 {[%emt 0:05:28]} 6. Nc3 {[%emt 0:00:37]} g6 {[%emt 0:00:37]} 7. d4 {[%emt 0:00:16]} cxd4 {[%emt 0:00:52]} 8. Nxd4 {[%emt 0:00:08]} Bg7 {[%emt 0:00:33]} 9. Be3 {[%emt 0:01:16]} Nf6 {[%emt 0:02:46]} 10. f3 {[%emt 0:00:24]} O-O {[%emt 0:05:47]} 11. O-O {[%emt 0:01:17]} Rac8 {[%emt 0:03:12]} 12. b3 {[%emt 0:02:46]} Nxd4 {[%emt 0:01:08] B52: Sicilian: Moscow Variation with 3...Bd7.} 13. Bxd4 {[%emt 0:01:35]} b6 {[%emt 0:03:21]} 14. a4 {[%emt 0:07:53]} Qb7 {[%emt 0:03:49] [#]} 15. a5 $146 {[%emt 0:22:02]} ({Predecessor:} 15. Nd5 Nxd5 16. exd5 a6 17. Bxg7 Kxg7 18. Qd4+ Kg8 19. Rf2 b5 20. axb5 axb5 21. Ra7 {½-½ (36) Diakonova,E (2236)-Linker,M (2269) Sochi 2018}) 15... Nd7 {[%emt 0:05:13]} 16. Nd5 {[%emt 0:13:07]} Bxd4+ {[%emt 0:04:15]} 17. Qxd4 {[%emt 0:00:18]} Nc5 {[%emt 0:00:15]} 18. Qe3 {[%emt 0:07:01]} e6 {[%emt 0:10:40]} 19. Nf6+ {[%emt 0:07:31]} Kg7 {[%emt 0:00:17]} 20. Ng4 {[%emt 0:03:14]} f6 {[%emt 0:07:58]} 21. Rfd1 {[%emt 0:08:00]} Rcd8 {[%emt 0:04:36]} 22. b4 {[%emt 0:03:48]} Na6 {[%emt 0:00:23]} 23. Ra4 {[%emt 0:01:51]} Rd7 {[%emt 0:04:02]} 24. axb6 {[%emt 0:00:52]} axb6 {[%emt 0:00:38] [#]} 25. Rda1 $2 {[%emt 0:00:45]} (25. e5 $1 $18 {[%mdl 512]}) 25... Nc7 {[%emt 0:04:59]} 26. Ra7 {[%emt 0:02:18]} Qb8 {[%emt 0:00:04]} 27. Qa3 {[%emt 0:05:14]} Rfd8 {[%emt 0:05:21]} 28. Qa4 {[%emt 0:01:16]} ({White should play} 28. Qc1 $16) 28... b5 {[%emt 0:01:02]} 29. Qb3 {[%emt 0:03:21]} Qb6+ $14 {[%emt 0:02:47]} (29... bxc4 $11 30. Qxc4 Qb6+ 31. Nf2 Rb8) 30. Kh1 {[%emt 0:00:12]} h5 {[%emt 0:01:05]} 31. Ne3 {[%emt 0:00:44]} Kf7 {[%emt 0:04:03]} 32. cxb5 {[%emt 0:03:34]} Nxb5 {[%emt 0:00:44]} 33. Rxd7+ {[%emt 0:01:17]} Rxd7 {[%emt 0:00:02]} 34. Nc4 {[%emt 0:00:32]} Qc6 {[%emt 0:01:34]} 35. Na5 {[%emt 0:00:51]} Qb6 {[%emt 0:02:06]} 36. Rc1 {[%emt 0:00:20]} Rc7 {[%emt 0:00:50]} 37. Rxc7+ {[%emt 0:01:44]} Qxc7 {[%emt 0:00:26]} 38. h3 {[%emt 0:01:09]} Qc1+ {[%emt 0:02:36]} 39. Kh2 {[%emt 0:00:02]} Qf4+ {[%emt 0:01:18]} 40. Kg1 {[%emt 0:00:24]} Qc1+ {[%emt 0:00:15]} 41. Kh2 {[%emt 0:00:15]} Qf4+ {[%emt 0:01:53]} 42. Kg1 {[%emt 0:00:04]} Qc1+ {[%emt 0:03:18]} 43. Kh2 {[%emt 0:00:07]} Qf4+ {[%emt 0:06:15]} 1/2-1/2

[Event "NOR-ch Women 2020"]
[Site "Bergen"]
[Date "2020.03.01"]
[Round "5.5"]
[White "Greibrokk, Ingrid"]
[Black "Hansen, Erle Andrea Marki"]
[Result "1/2-1/2"]
[ECO "E61"]
[WhiteElo "1862"]
[BlackElo "1860"]
[Annotator "NA"]
[PlyCount "121"]
[EventDate "2020.02.28"]
[EventType "swiss"]
[EventCountry "NOR"]
[SourceTitle "playchess.com"]
[Source "ChessBase"]
[SourceQuality "1"]
[TimeControl "5400+30"]

1. c4 {[%emt 0:00:00]} Nf6 {[%emt 0:01:51]} 2. g3 {[%emt 0:00:00]} g6 {[%emt 0:00:05]} 3. Bg2 {[%emt 0:00:00]} Bg7 {[%emt 0:00:05]} 4. Nc3 {[%emt 0:00:02]} O-O {[%emt 0:00:06]} 5. e3 {[%emt 0:00:02]} d6 {[%emt 0:00:09]} 6. Nge2 {[%emt 0:00:06]} Nbd7 {[%emt 0:05:24]} 7. O-O {[%emt 0:00:11]} c6 {[%emt 0:01:49]} 8. d4 {[%emt 0:00:35]} e5 {[%emt 0:03:00]} 9. b3 {[%emt 0:00:41]} Ne8 {[%emt 0:03:35]} 10. dxe5 {[%emt 0:03:09]} Nxe5 {[%emt 0:03:35]} 11. Qc2 {[%emt 0:02:27]} Qc7 {[%emt 0:09:17]} 12. Ba3 {[%emt 0:01:21]} Rb8 {[%emt 0:13:16]} 13. Rac1 {[%emt 0:02:19]} Qa5 {[%emt 0:13:23]} 14. Bb2 {[%emt 0:01:14]} Nf6 {[%emt 0:11:58]} 15. Rfd1 {[%emt 0:01:13]} Rd8 {[%emt 0:00:28]} (15... Bf5 $11 {remains equal.} 16. e4 Bg4) 16. h3 {[%emt 0:05:11]} Qc7 {[%emt 0:07:29]} 17. Rd2 {[%emt 0:03:31]} b5 {[%emt 0:03:49]} 18. cxb5 {[%emt 0:02:46]} cxb5 {[%emt 0:00:22]} 19. Ne4 {[%emt 0:00:26]} Qxc2 {[%emt 0:02:33]} 20. Nxf6+ {[%emt 0:00:06]} Bxf6 {[%emt 0:00:04]} 21. Rcxc2 {[%emt 0:01:16]} Bb7 {[%emt 0:01:24]} 22. f4 {[%emt 0:00:50]} Nd7 $16 {[%emt 0:00:55]} 23. Bxb7 {[%emt 0:00:16]} Bxb2 {[%emt 0:01:01]} 24. Rxb2 {[%emt 0:00:05]} Rxb7 {[%emt 0:00:04]} 25. Rxd6 {[%emt 0:00:07]} Re8 {[%emt 0:00:24]} 26. Rbd2 {[%emt 0:08:32]} Nc5 {[%emt 0:00:40]} 27. Rd8 {[%emt 0:00:07]} Rbe7 {[%emt 0:00:17]} 28. Rxe8+ {[%emt 0:00:46]} Rxe8 {[%emt 0:00:01]} 29. Rd5 {[%emt 0:00:08]} Rc8 {[%emt 0:09:15]} 30. Nd4 {[%emt 0:13:07]} b4 {[%emt 0:01:21]} 31. Nb5 {[%emt 0:00:57]} a5 {[%emt 0:00:54]} 32. Nd6 {[%emt 0:00:12]} Rc6 {[%emt 0:00:47]} 33. Nc4 {[%emt 0:02:52]} a4 {[%emt 0:01:02]} 34. Ne5 {[%emt 0:00:49]} Rc8 {[%emt 0:01:07]} 35. Rd4 {[%emt 0:02:45]} axb3 {[%emt 0:03:03]} 36. axb3 {[%emt 0:00:07]} Nxb3 {[%emt 0:00:14]} 37. Rxb4 {[%emt 0:00:04]} Rc3 {[%emt 0:00:58]} 38. Kf2 {[%emt 0:01:15]} Nc5 {[%emt 0:00:38]} 39. Rc4 {[%emt 0:01:11]} Rxc4 {[%emt 0:00:35]} 40. Nxc4 {[%emt 0:00:03]} Ne4+ {[%emt 0:00:05]} 41. Kf3 {[%emt 0:00:14]} f5 {[%emt 0:00:23]} 42. g4 {[%emt 0:00:09]} Kg7 {[%emt 0:00:58]} 43. gxf5 {[%emt 0:02:47]} gxf5 {[%emt 0:00:03]} 44. Nb6 {[%emt 0:01:27]} Kf6 {[%emt 0:01:06]} 45. Nd5+ {[%emt 0:01:05]} Ke6 {[%emt 0:00:36]} 46. Nb4 {[%emt 0:00:09]} Kf7 {[%emt 0:00:46]} 47. Nd3 {[%emt 0:00:08]} Kg6 {[%emt 0:01:35]} 48. Nf2 {[%emt 0:00:26]} Nf6 {[%emt 0:00:35]} 49. e4 {[%emt 0:00:06]} fxe4+ {[%emt 0:00:20]} 50. Nxe4 {[%emt 0:00:01]} Nd5 {[%emt 0:00:43]} 51. Ng3 {[%emt 0:00:33]} Kf6 {[%emt 0:00:44]} 52. h4 {[%emt 0:00:33]} Nc3 {[%emt 0:00:28]} 53. Kg4 {[%emt 0:00:10]} Nd5 {[%emt 0:00:18]} 54. Ne4+ {[%emt 0:00:35]} Kg7 {[%emt 0:00:36]} 55. Nd6 {[%emt 0:02:43]} Ne3+ {[%emt 0:00:35]} 56. Kg5 {[%emt 0:02:30]} h6+ {[%emt 0:00:27]} 57. Kh5 {[%emt 0:00:07]} Ng2 {[%emt 0:00:26]} 58. f5 {[%emt 0:01:19]} Ne3 {[%emt 0:00:11]} 59. f6+ {[%emt 0:05:33]} Kxf6 {[%emt 0:00:04]} 60. Kxh6 {[%emt 0:00:09]} Nf5+ {[%emt 0:00:41]} 61. Nxf5 {[%emt 0:01:16]} 1/2-1/2